fUSD/lending_fUSD_20250514
["ID","MTS","AMOUNT","RATE_DAILY","PERIOD"]
[361099090,1747253457194,-667.2,0.00011742,2]
[361099091,1747253457203,-400.0,0.00011742,2]
[361099092,1747253457213,-400.0,0.00011742,2]
[361099093,1747253457223,-500.0,0.00011742,2]
[361099094,1747253457232,-500.0,0.00011742,2]
[361099095,1747253457243,-151.0,0.00011743,2]
[361099096,1747253457252,-151.0,0.00011743,2]
[361099097,1747253457262,-151.0,0.00011743,2]
[361099098,1747253457271,-1000.0,0.0001177,2]
[361099099,1747253457281,-894.11307428,0.0001177,2]
[361099100,1747253457291,-196.96250222,0.00011798,2]
[361099101,1747253457301,-1800.0,0.000118,4]
[361099102,1747253457311,-3461.31481545,0.0001181,2]
[361099103,1747253457320,-565.39327354,0.000119,2]
[361099104,1747253457329,-2400.0,0.000119,4]
[361099105,1747253457339,-5265.11888948,0.000119,2]
[361099106,1747253457365,-512.47,0.00011741,2]
[361099107,1747253457375,-4377.49383233,0.000119,2]
[361099108,1747253457385,-1048.9855833,0.00011939,2]
[361099109,1747253457395,-1000.0,0.0001197,2]
[361099110,1747253457405,-500.0,0.0001197,2]
[361099111,1747253457415,-500.0,0.00011973,2]
[361099112,1747253457425,-197.506845,0.00011995,2]
[361099113,1747253457437,-197.506845,0.00011995,2]
[361099114,1747253457447,-151.0,0.00011995,2]
[361099115,1747253457456,-4172.89773506,0.00011998,2]
[361099116,1747253457468,-1421.00601554,0.00011998,2]
[361099117,1747253457479,-1034.4,0.00011998,2]
[361099118,1747253457491,-739.96549882,0.00011998,2]
[361099119,1747253457503,-31340.15161045,0.00011998,2]
[361099120,1747253458015,-400.0,0.00011192,2]
[361099121,1747253458024,-400.0,0.00011192,2]
[361099122,1747253458034,-500.0,0.00011193,2]
[361099123,1747253458044,-400.0,0.00011193,2]
[361099124,1747253458053,-400.0,0.00011193,2]
[361099125,1747253458063,-400.0,0.00011466,2]
[361099126,1747253458072,-400.0,0.00011466,2]
[361099127,1747253458082,-500.0,0.00011467,2]
[361099128,1747253458091,-400.0,0.00011467,2]
[361099129,1747253458101,-400.0,0.00011467,2]
[361099130,1747253458111,-400.0,0.0001174,2]
[361099131,1747253458120,-487.94,0.0001174,2]
[361099132,1747253458130,-400.0,0.00011741,2]
[361099133,1747253458140,-400.0,0.00011741,2]
[361099134,1747253458149,-6957.34457503,0.00011998,2]
[361099135,1747253458159,-1614.823651,0.00011998,2]
[361099136,1747253458168,-189.8994466,0.00011999,2]
[361099137,1747253458178,-2305.6543364,0.00011999,2]
[361099138,1747253458190,-500.0,0.00011999,2]
[361099139,1747253458200,-500.0,0.00011999,2]
[361099140,1747253458209,-500.0,0.00011999,2]
[361099141,1747253458218,-151.0,0.00011999,2]
[361099142,1747253458228,-107307.06833025,0.00012,2]
[361099143,1747253459295,-400.0,0.00011192,2]
[361099144,1747253459306,-328.48658458,0.00011192,2]
[361099145,1747253459326,-71.51341542,0.00011192,2]
[361099146,1747253459336,-400.0,0.00011192,2]
[361099147,1747253459346,-151.55344983,0.00011192,2]
[361099148,1747253459357,-400.0,0.00011192,2]
[361099149,1747253459367,-400.0,0.00011193,2]
[361099150,1747253459377,-400.0,0.00011193,2]
[361099151,1747253459388,-400.0,0.00011193,2]
[361099152,1747253459399,-247.29,0.00011193,2]
[361099153,1747253459410,-400.0,0.00011466,2]
[361099154,1747253459420,-400.0,0.00011466,2]
[361099155,1747253459430,-400.0,0.00011466,2]
[361099156,1747253459440,-400.0,0.00011466,2]
[361099157,1747253459450,-400.0,0.00011467,2]
[361099158,1747253459460,-400.0,0.00011467,2]
[361099159,1747253459469,-400.0,0.00011467,2]
[361099160,1747253459479,-846.04970616,0.00011737,2]
[361099161,1747253459489,-400.0,0.0001174,2]
[361099162,1747253459499,-400.0,0.0001174,2]
[361099163,1747253459508,-400.0,0.0001174,2]
[361099164,1747253459518,-400.0,0.0001174,2]
[361099165,1747253459528,-169.23653782,0.00011741,2]
[361099166,1747253459539,-400.0,0.00011741,2]
[361099167,1747253459548,-400.0,0.00011741,2]
[361099168,1747253459559,-1654.35689078,0.00012,2]
[361099169,1747253459571,-50820.0,0.00012,2]
[361099170,1747253653898,590.97,8.989e-05,2]
[361099171,1747253681012,150.0,0.000135,5]
[361099174,1747253913077,150.0,0.0001045,7]
[361099182,1747254554644,-181.04,0.00010166,2]
[361099183,1747254554667,-1200.0,0.00010366,2]
[361099184,1747254554691,-300.0,0.00010366,2]
[361099185,1747254554715,-200.0,0.00010366,2]
[361099186,1747254554738,-8954.76783872,0.00010367,2]
[361099187,1747254554762,-200.0,0.00010367,2]
[361099188,1747254554785,-9198.9,0.00010367,2]
[361099189,1747254554807,-351.76,0.00010367,2]
[361099190,1747254554831,-358.2,0.00010367,2]
[361099191,1747254554855,-955.33216128,0.00010367,2]
[361099195,1747254600200,-1000.3130762,0.00027397,120]
[361099203,1747254631997,-389.42,0.00010194,2]
[361099206,1747254632007,-44.66783872,0.00010367,2]
[361099207,1747254632016,-200.0,0.00010407,2]
[361099208,1747254632025,-171.55,0.00010448,2]
[361099209,1747254632034,-200.0,0.00010524,2]
[361099210,1747254632043,-500.0,0.00010647,2]
[361099211,1747254632052,-882.94,0.00010647,2]
[361099212,1747254632062,-1211.46,0.00010683,2]
[361099213,1747254632071,-1200.0,0.00010899,2]
[361099214,1747254632080,-300.0,0.00010899,2]
[361099215,1747254632089,-300.0,0.000109,3]
[361099216,1747254632098,-9479.8289532,0.000109,2]
[361099217,1747254632107,-207.4,0.00010909,2]
[361099218,1747254632116,-164.69,0.00010966,2]
[361099219,1747254632126,-1601.59999997,0.00011083,2]
[361099220,1747254632135,-192.34856196,0.00011091,2]
[361099221,1747254632144,-550.72005411,0.00011092,2]
[361099222,1747254632153,-500.0,0.00011092,2]
[361099223,1747254632162,-150.0,0.00011092,2]
[361099224,1747254632171,-264.0592,0.00011092,2]
[361099225,1747254632180,-55594.5893,0.00011093,2]
[361099226,1747254632188,-486.53259151,0.00011093,2]
[361099227,1747254632197,-151.0,0.00011185,2]
[361099228,1747254632207,-334.92793254,0.00011185,2]
[361099229,1747254632216,-668.65185757,0.00011185,2]
[361099230,1747254632225,-400.0,0.0001119,2]
[361099231,1747254632235,-400.0,0.0001119,2]
[361099232,1747254632246,-152.10625689,0.0001119,2]
[361099233,1747254632255,-400.0,0.0001119,2]
[361099234,1747254632264,-400.0,0.0001119,2]
[361099235,1747254632273,-400.0,0.0001119,2]
[361099236,1747254632282,-400.0,0.0001119,2]
[361099237,1747254632292,-400.0,0.0001119,2]
[361099239,1747254632301,-400.0,0.0001119,2]
[361099241,1747254632310,-353.89732197,0.0001119,2]
[361099243,1747254632319,-563.22,0.0001119,2]
[361099245,1747254632328,-400.0,0.0001119,2]
[361099247,1747254632337,-400.0,0.0001119,2]
[361099249,1747254632346,-400.0,0.0001119,2]
[361099251,1747254632355,-450.0,0.0001119,2]
[361099253,1747254632364,-400.0,0.0001119,2]
[361099255,1747254632373,-560.63,0.0001119,2]
[361099257,1747254632383,-400.0,0.0001119,2]
[361099259,1747254632392,-612.52,0.0001119,2]
[361099261,1747254632401,-400.0,0.0001119,2]
[361099263,1747254632410,-400.0,0.0001119,2]
[361099265,1747254632419,-400.0,0.0001119,2]
[361099268,1747254632428,-400.0,0.0001119,2]
[361099271,1747254632438,-262.25377812,0.0001119,2]
[361099274,1747254632447,-906.03,0.0001119,2]
[361099277,1747254632456,-3316.94,0.0001119,2]
[361099280,1747254632465,-400.0,0.0001119,2]
[361099282,1747254632475,-400.0,0.0001119,2]
[361099284,1747254632484,-357.46692127,0.0001119,2]
[361099286,1747254632494,-400.0,0.0001119,2]
[361099288,1747254632503,-224.79,0.0001119,2]
[361099290,1747254632512,-694.2,0.0001119,2]
[361099292,1747254632521,-623.63,0.0001119,2]
[361099293,1747254632531,-400.0,0.0001119,2]
[361099295,1747254632540,-1375.75,0.0001119,2]
[361099297,1747254632549,-529.46,0.0001119,2]
[361099300,1747254632561,-475.78,0.0001119,2]
[361099301,1747254632570,-400.0,0.0001119,2]
[361099303,1747254632579,-400.0,0.0001119,2]
[361099305,1747254632587,-500.0,0.0001119,2]
[361099307,1747254632595,-474.47,0.0001119,2]
[361099309,1747254632604,-500.0,0.0001119,2]
[361099311,1747254632612,-597.16,0.0001119,2]
[361099313,1747254632620,-400.0,0.0001119,2]
[361099315,1747254632629,-788.09,0.0001119,2]
[361099317,1747254632638,-500.0,0.0001119,2]
[361099319,1747254632649,-500.0,0.0001119,2]
[361099321,1747254632658,-450.0,0.0001119,2]
[361099323,1747254632668,-400.0,0.0001119,2]
[361099325,1747254632677,-400.0,0.0001119,2]
[361099327,1747254632686,-400.0,0.0001119,2]
[361099329,1747254632695,-400.0,0.0001119,2]
[361099331,1747254632705,-157.485754,0.0001119,2]
[361099333,1747254632714,-400.0,0.0001119,2]
[361099335,1747254632723,-170.0,0.00011191,2]
[361099337,1747254632732,-171.933654,0.00011191,2]
[361099339,1747254632740,-173.75070037,0.00011191,2]
[361099341,1747254632749,-111.00745008,0.00011191,2]
[361099343,1747254632761,-137.47133449,0.00011191,2]
[361099345,1747254632770,-202.33797632,0.00011191,2]
[361099347,1747254632780,-796.34,0.00011191,2]
[361099349,1747254632789,-400.0,0.00011191,2]
[361099351,1747254632798,-940.55,0.00011191,2]
[361099353,1747254632806,-400.0,0.00011191,2]
[361099355,1747254632815,-400.0,0.00011191,2]
[361099357,1747254632824,-500.0,0.00011191,2]
[361099359,1747254632833,-630.43,0.00011191,2]
[361099361,1747254632842,-150.0,0.00011191,2]
[361099363,1747254632851,-400.0,0.00011191,2]
[361099365,1747254632860,-400.0,0.00011191,2]
[361099367,1747254632870,-500.0,0.00011191,2]
[361099369,1747254632879,-563.15,0.00011191,2]
[361099371,1747254632888,-400.0,0.00011191,2]
[361099373,1747254632898,-400.0,0.00011191,2]
[361099375,1747254632907,-400.0,0.00011191,2]
[361099377,1747254632916,-400.0,0.00011191,2]
[361099379,1747254632925,-560.88,0.00011191,2]
[361099381,1747254632934,-930.93,0.00011191,2]
[361099383,1747254632943,-400.0,0.00011191,2]
[361099385,1747254632952,-400.0,0.00011191,2]
[361099387,1747254632960,-479.91,0.00011191,2]
[361099389,1747254632968,-451.4,0.00011191,2]
[361099391,1747254632977,-400.0,0.00011191,2]
[361099393,1747254632985,-400.0,0.00011191,2]
[361099395,1747254632993,-400.0,0.00011191,2]
[361099397,1747254633002,-400.0,0.00011191,2]
[361099399,1747254633012,-450.0,0.00011191,2]
[361099401,1747254633021,-454.98,0.00011191,2]
[361099402,1747254633030,-705.59,0.00011191,2]
[361099404,1747254633040,-400.0,0.00011191,2]
[361099406,1747254633049,-495.24,0.00011191,2]
[361099408,1747254633058,-400.0,0.00011191,2]
[361099411,1747254633068,-400.0,0.00011191,2]
[361099413,1747254633077,-446.99738245,0.00011191,2]
[361099414,1747254633086,-642.15,0.00011191,2]
[361099416,1747254633096,-611.82,0.00011191,2]
[361099419,1747254633105,-400.0,0.00011191,2]
[361099421,1747254633115,-400.0,0.00011191,2]
[361099423,1747254633124,-400.0,0.00011191,2]
[361099424,1747254633134,-400.0,0.00011191,2]
[361099426,1747254633144,-400.0,0.00011191,2]
[361099428,1747254633153,-157.796369,0.00011191,2]
[361099430,1747254633162,-400.0,0.00011191,2]
[361099432,1747254633172,-150.9,0.00011191,2]
[361099434,1747254633181,-450.0,0.00011191,2]
[361099436,1747254633191,-400.0,0.00011191,2]
[361099438,1747254633201,-448.06,0.00011191,2]
[361099440,1747254633210,-863.46,0.00011191,2]
[361099442,1747254633220,-450.0,0.00011191,2]
[361099444,1747254633229,-450.0,0.00011191,2]
[361099446,1747254633238,-400.0,0.00011191,2]
[361099448,1747254633248,-400.0,0.00011191,2]
[361099450,1747254633258,-400.0,0.00011191,2]
[361099452,1747254633267,-400.0,0.00011191,2]
[361099454,1747254633276,-450.0,0.00011191,2]
[361099456,1747254633286,-450.0,0.00011191,2]
[361099458,1747254633295,-173.94,0.00011191,2]
[361099460,1747254633305,-400.0,0.00011191,2]
[361099462,1747254633314,-423.68,0.00011191,2]
[361099464,1747254633324,-400.0,0.00011191,2]
[361099466,1747254633334,-400.0,0.00011191,2]
[361099468,1747254633344,-450.0,0.00011191,2]
[361099470,1747254633353,-400.0,0.00011191,2]
[361099472,1747254633363,-400.0,0.00011191,2]
[361099474,1747254633373,-400.0,0.00011191,2]
[361099476,1747254633383,-560.12,0.00011191,2]
[361099478,1747254633394,-438.2,0.00011191,2]
[361099480,1747254633404,-403.23,0.00011191,2]
[361099482,1747254633413,-400.0,0.00011191,2]
[361099485,1747254633423,-428.87,0.00011191,2]
[361099486,1747254633432,-400.0,0.00011191,2]
[361099489,1747254633442,-400.0,0.00011191,2]
[361099491,1747254633452,-400.0,0.00011191,2]
[361099493,1747254633462,-400.0,0.00011191,2]
[361099495,1747254633471,-400.0,0.00011191,2]
[361099497,1747254633480,-400.0,0.00011191,2]
[361099498,1747254633489,-400.0,0.00011191,2]
[361099500,1747254633500,-422.43,0.00011191,2]
[361099502,1747254633509,-400.69343317,0.00011191,2]
[361099504,1747254633519,-152.68,0.00011191,2]
[361099505,1747254633527,-491.88,0.00011191,2]
[361099506,1747254633537,-400.0,0.00011191,2]
[361099507,1747254633546,-400.0,0.00011191,2]
[361099508,1747254633555,-566.34,0.00011191,2]
[361099509,1747254633566,-400.0,0.00011191,2]
[361099510,1747254633575,-3848.86,0.00011191,2]
[361099511,1747254633585,-400.0,0.00011191,2]
[361099512,1747254633594,-400.0,0.00011191,2]
[361099513,1747254633602,-550.43,0.00011191,2]
[361099514,1747254633611,-428.11,0.00011191,2]
[361099515,1747254633620,-400.0,0.00011191,2]
[361099516,1747254633629,-403.9,0.00011191,2]
[361099517,1747254633638,-450.0,0.00011191,2]
[361099518,1747254633647,-1197.63,0.00011191,2]
[361099519,1747254633656,-450.0,0.00011191,2]
[361099520,1747254633665,-450.2,0.00011191,2]
[361099521,1747254633673,-491.97,0.00011191,2]
[361099522,1747254633682,-400.0,0.00011191,2]
[361099523,1747254633691,-1211.01,0.00011191,2]
[361099525,1747254633701,-758.12,0.00011191,2]
[361099526,1747254633710,-400.0,0.00011191,2]
[361099528,1747254633719,-400.0,0.00011191,2]
[361099530,1747254633728,-500.0,0.00011191,2]
[361099532,1747254633737,-400.0,0.00011191,2]
[361099534,1747254633746,-757.85,0.00011191,2]
[361099536,1747254633755,-400.0,0.00011191,2]
[361099538,1747254633765,-1425.91,0.00011191,2]
[361099540,1747254633774,-439.84766303,0.00011191,2]
[361099542,1747254633783,-2550.66,0.00011191,2]
[361099544,1747254633793,-881.55,0.00011191,2]
[361099546,1747254633803,-1241.79,0.00011191,2]
[361099548,1747254633813,-400.0,0.00011191,2]
[361099550,1747254633822,-1104.28,0.00011191,2]
[361099552,1747254633831,-1175.77,0.00011191,2]
[361099554,1747254633840,-6906.35,0.00011191,2]
[361099556,1747254633849,-1474.23,0.00011191,2]
[361099558,1747254633859,-400.0,0.00011191,2]
[361099560,1747254633868,-400.0,0.00011191,2]
[361099562,1747254633877,-913.09,0.00011191,2]
[361099564,1747254633886,-400.0,0.00011191,2]
[361099566,1747254633895,-6831.32,0.00011191,2]
[361099568,1747254633905,-1141.02,0.00011191,2]
[361099570,1747254633913,-1344.83,0.00011191,2]
[361099572,1747254633922,-450.0,0.00011191,2]
[361099574,1747254633931,-1805.96,0.00011191,2]
[361099576,1747254633941,-448.53,0.00011191,2]
[361099578,1747254633950,-400.0,0.00011191,2]
[361099580,1747254633959,-400.0,0.00011191,2]
[361099582,1747254633969,-1913.86,0.00011191,2]
[361099584,1747254633978,-400.0,0.00011191,2]
[361099586,1747254633987,-854.87,0.00011191,2]
[361099588,1747254633997,-400.0,0.00011191,2]
[361099590,1747254634006,-400.0,0.00011191,2]
[361099592,1747254634015,-790.54,0.00011191,2]
[361099594,1747254634025,-709.85,0.00011191,2]
[361099596,1747254634034,-400.0,0.00011191,2]
[361099598,1747254634043,-400.0,0.00011191,2]
[361099600,1747254634052,-905.37,0.00011191,2]
[361099602,1747254634061,-1036.23,0.00011191,2]
[361099604,1747254634070,-404.71,0.00011191,2]
[361099606,1747254634079,-2542.66,0.00011191,2]
[361099608,1747254634088,-4468.4,0.00011191,2]
[361099610,1747254634098,-975.33,0.00011191,2]
[361099612,1747254634107,-296.15,0.00011191,2]
[361099614,1747254634116,-697.93,0.00011191,2]
[361099616,1747254634125,-611.17,0.00011191,2]
[361099617,1747254634134,-868.58,0.00011191,2]
[361099618,1747254634143,-1654.0,0.00011191,2]
[361099619,1747254634152,-450.0,0.00011191,2]
[361099620,1747254634161,-400.0,0.00011191,2]
[361099621,1747254634170,-483.09,0.00011191,2]
[361099622,1747254634180,-4433.68,0.00011191,2]
[361099623,1747254634189,-628.04,0.00011191,2]
[361099624,1747254634198,-400.0,0.00011191,2]
[361099626,1747254634207,-400.0,0.00011191,2]
[361099628,1747254634216,-400.0,0.00011191,2]
[361099630,1747254634225,-5069.77,0.00011191,2]
[361099632,1747254634235,-450.0,0.00011191,2]
[361099634,1747254634245,-495.42,0.00011191,2]
[361099636,1747254634255,-500.0,0.00011191,2]
[361099638,1747254634263,-150.0,0.00011191,2]
[361099640,1747254634273,-400.0,0.00011191,2]
[361099642,1747254634282,-400.0,0.00011191,2]
[361099644,1747254634292,-640.08,0.00011191,2]
[361099646,1747254634301,-18175.74,0.00011191,2]
[361099648,1747254634310,-474.65,0.00011191,2]
[361099650,1747254634319,-400.0,0.00011191,2]
[361099651,1747254634329,-567.4,0.00011191,2]
[361099653,1747254634338,-1151.13,0.00011191,2]
[361099655,1747254634347,-766.63,0.00011191,2]
[361099657,1747254634356,-650.37,0.00011191,2]
[361099659,1747254634366,-400.0,0.00011191,2]
[361099661,1747254634375,-3945.72,0.00011191,2]
[361099663,1747254634384,-417.79,0.00011191,2]
[361099665,1747254634394,-591.84,0.00011191,2]
[361099667,1747254634403,-1034.08,0.00011191,2]
[361099669,1747254634413,-1233.48,0.00011191,2]
[361099671,1747254634423,-450.0,0.00011191,2]
[361099673,1747254634432,-11523.1,0.00011191,2]
[361099675,1747254634441,-400.0,0.00011191,2]
[361099677,1747254634451,-400.0,0.00011191,2]
[361099679,1747254634460,-400.0,0.00011191,2]
[361099681,1747254634469,-825.49,0.00011191,2]
[361099683,1747254634478,-413.47,0.00011191,2]
[361099685,1747254634487,-400.0,0.00011191,2]
[361099687,1747254634497,-606.03,0.00011191,2]
[361099689,1747254634506,-76675.87,0.00011191,2]
[361099691,1747254634516,-150.0,0.00011191,2]
[361099693,1747254634526,-635.17,0.00011191,2]
[361099695,1747254634535,-400.0,0.00011191,2]
[361099697,1747254634544,-906.53,0.00011191,2]
[361099699,1747254634553,-400.0,0.00011191,2]
[361099700,1747254634566,-1065.8,0.00011191,2]
[361099702,1747254634575,-717.63,0.00011191,2]
[361099704,1747254634584,-400.0,0.00011191,2]
[361099706,1747254634593,-1699.81,0.00011191,2]
[361099708,1747254634604,-500.0,0.00011191,2]
[361099710,1747254634613,-478.35,0.00011191,2]
[361099712,1747254634622,-450.0,0.00011191,2]
[361099714,1747254634631,-612.68767295,0.00011191,2]
[361099716,1747254634640,-2503.86,0.00011191,2]
[361099718,1747254634650,-569.56,0.00011191,2]
[361099720,1747254634659,-400.0,0.00011191,2]
[361099722,1747254634668,-400.0,0.00011191,2]
[361099724,1747254634677,-400.0,0.00011191,2]
[361099726,1747254634686,-400.0,0.00011191,2]
[361099728,1747254634696,-2121.65,0.00011191,2]
[361099730,1747254634705,-465.39,0.00011191,2]
[361099732,1747254634714,-494.71,0.00011191,2]
[361099734,1747254634724,-2059.28,0.00011191,2]
[361099736,1747254634733,-681.24,0.00011191,2]
[361099738,1747254634743,-400.0,0.00011191,2]
[361099740,1747254634754,-400.0,0.00011191,2]
[361099741,1747254634763,-454.67,0.00011191,2]
[361099743,1747254634772,-2895.73,0.00011191,2]
[361099744,1747254634782,-1240.5,0.00011191,2]
[361099745,1747254634791,-642.27,0.00011191,2]
[361099746,1747254634801,-400.0,0.00011191,2]
[361099747,1747254634810,-400.0,0.00011192,2]
[361099748,1747254634820,-171.52696216,0.00011192,2]
[361099749,1747254634829,-886.58,0.00011192,2]
[361099750,1747254634839,-401.12,0.00011192,2]
[361099751,1747254634848,-971.27,0.00011192,2]
[361099752,1747254634859,-658.63,0.00011192,2]
[361099753,1747254634868,-450.0,0.00011192,2]
[361099754,1747254634878,-1254.3,0.00011192,2]
[361099755,1747254634888,-400.0,0.00011192,2]
[361099756,1747254634898,-400.0,0.00011192,2]
[361099757,1747254634907,-400.0,0.00011192,2]
[361099758,1747254634917,-400.0,0.00011192,2]
[361099759,1747254634927,-400.0,0.00011192,2]
[361099760,1747254634937,-400.0,0.00011192,2]
[361099761,1747254634946,-400.0,0.00011192,2]
[361099762,1747254634956,-400.0,0.00011192,2]
[361099763,1747254634966,-400.0,0.00011192,2]
[361099764,1747254634976,-400.0,0.00011192,2]
[361099765,1747254634985,-400.0,0.00011192,2]
[361099766,1747254634995,-400.0,0.00011192,2]
[361099767,1747254635005,-400.0,0.00011192,2]
[361099768,1747254635015,-400.0,0.00011192,2]
[361099769,1747254635024,-530.87,0.00011192,2]
[361099770,1747254635034,-531.42826194,0.00011192,2]
[361099771,1747254635043,-400.0,0.00011192,2]
[361099772,1747254635053,-516.17,0.00011192,2]
[361099773,1747254635063,-400.0,0.00011192,2]
[361099774,1747254635073,-550.92,0.00011192,2]
[361099775,1747254635082,-400.0,0.00011192,2]
[361099776,1747254635092,-2151.44,0.00011192,2]
[361099777,1747254635101,-450.0,0.00011192,2]
[361099778,1747254635111,-616.45,0.00011192,2]
[361099779,1747254635120,-450.0,0.00011192,2]
[361099780,1747254635130,-400.0,0.00011192,2]
[361099781,1747254635140,-400.0,0.00011192,2]
[361099782,1747254635149,-562.08,0.00011192,2]
[361099783,1747254635159,-2000.0,0.00011192,2]
[361099784,1747254635167,-400.0,0.00011192,2]
[361099785,1747254635176,-825.54,0.00011192,2]
[361099786,1747254635185,-400.0,0.00011192,2]
[361099787,1747254635193,-400.0,0.00011192,2]
[361099788,1747254635202,-400.0,0.00011192,2]
[361099789,1747254635211,-400.0,0.00011192,2]
[361099790,1747254635220,-400.0,0.00011192,2]
[361099791,1747254635229,-573.25,0.00011192,2]
[361099792,1747254635238,-594.86,0.00011192,2]
[361099793,1747254635246,-400.0,0.00011192,2]
[361099794,1747254635255,-501.9,0.00011192,2]
[361099795,1747254635263,-400.0,0.00011192,2]
[361099796,1747254635272,-549.14563623,0.00011192,2]
[361099797,1747254635507,-1579.65,0.00011192,2]
[361099798,1747254635518,-416.6182535,0.00011192,2]
[361099799,1747254635528,-1179.62,0.00011192,2]
[361099800,1747254635538,-400.0,0.00011192,2]
[361099801,1747254635548,-400.0,0.00011192,2]
[361099802,1747254635560,-221.32,0.00011192,2]
[361099803,1747254635570,-400.0,0.00011192,2]
[361099804,1747254635579,-400.0,0.00011192,2]
[361099805,1747254635589,-400.0,0.00011192,2]
[361099806,1747254635598,-500.0,0.00011192,2]
[361099807,1747254635607,-400.0,0.00011192,2]
[361099808,1747254635617,-400.0,0.00011192,2]
[361099809,1747254635626,-544.25,0.00011192,2]
[361099810,1747254635635,-400.0,0.00011192,2]
[361099811,1747254635644,-400.0,0.00011192,2]
[361099812,1747254635654,-1381.47,0.00011192,2]
[361099813,1747254635663,-371.25439983,0.00011192,2]
[361099814,1747254635687,-1148.1,0.0001119,2]
[361099815,1747254635697,-44.28560017,0.00011192,2]
[361099816,1747254635706,-400.0,0.00011192,2]
[361099817,1747254635716,-400.0,0.00011192,2]
[361099818,1747254635725,-503.63,0.00011192,2]
[361099819,1747254635735,-450.0,0.00011192,2]
[361099820,1747254635744,-400.0,0.00011192,2]
[361099821,1747254635754,-400.0,0.00011192,2]
[361099822,1747254635763,-450.0,0.00011192,2]
[361099823,1747254635773,-418.77,0.00011192,2]
[361099824,1747254635782,-236.22744502,0.00011192,2]
[361099825,1747254635794,-301.74255498,0.00011192,2]
[361099826,1747254635803,-400.0,0.00011192,2]
[361099827,1747254635812,-768.74,0.00011192,2]
[361099828,1747254635821,-605.56,0.00011192,2]
[361099829,1747254635831,-404.79,0.00011192,2]
[361099830,1747254635840,-319.54151911,0.00011192,2]
[361099831,1747254635851,-80.45848089,0.00011192,2]
[361099832,1747254635860,-400.0,0.00011192,2]
[361099833,1747254635870,-94.14151911,0.00011192,2]
[361099834,1747254635881,-448.36848089,0.00011192,2]
[361099835,1747254635891,-479.95,0.00011192,2]
[361099836,1747254635900,-91.50031911,0.00011192,2]
[361099837,1747254635919,-479.88968089,0.00011192,2]
[361099838,1747254635929,-509.76,0.00011192,2]
[361099839,1747254635938,-400.0,0.00011192,2]
[361099840,1747254635947,-400.0,0.00011192,2]
[361099841,1747254635956,-400.0,0.00011192,2]
[361099842,1747254635967,-469.87,0.00011192,2]
[361099843,1747254635978,-2008.94216395,0.00011192,2]
[361099844,1747254635993,-1721.27783605,0.00011192,2]
[361099845,1747254636003,-765.54,0.00011192,2]
[361099846,1747254636013,-450.0,0.00011192,2]
[361099847,1747254636023,-580.99243045,0.00011192,2]
[361099848,1747254636034,-244.14756955,0.00011192,2]
[361099849,1747254636044,-471.08,0.00011192,2]